[Event "*** SCC Grand Prix: Titled Tuesday Blitz"]
[Site "Chess.com"]
[Date "2020.09.29"]
[Round "7"]
[White "theblitzchamp"]
[Black "Steven_Rojas"]
[Result "1-0"]
[WhiteElo "2627"]
[BlackElo "2453"]
[TimeControl "180+1"]
[EndTime "11:15:35 PDT"]
[Termination "theblitzchamp won on time"]

1. e4 {[%clk 0:03:00.9]} 1... e6 {[%clk 0:02:59.8]} 2. Nf3 {[%clk 0:03:00.9]}
2... d5 {[%clk 0:02:59.7]} 3. Nc3 {[%clk 0:03:01.8]} 3... d4 {[%clk 0:02:58.6]}
4. Ne2 {[%clk 0:03:01.6]} 4... c5 {[%clk 0:02:59.1]} 5. c3 {[%clk 0:03:02.3]}
5... dxc3 {[%clk 0:01:34.9]} 6. bxc3 {[%clk 0:03:03.2]} 6... Nc6 {[%clk
0:01:35]} 7. Ng3 {[%clk 0:03:00]} 7... Nge7 {[%clk 0:01:27.5]} 8. Be2 {[%clk
0:02:59.5]} 8... g6 {[%clk 0:01:25.3]} 9. O-O {[%clk 0:02:51.9]} 9... Bg7 {[%clk
0:01:25.3]} 10. Ba3 {[%clk 0:02:51.4]} 10... b6 {[%clk 0:01:24.6]} 11. Qc2
{[%clk 0:02:46.8]} 11... O-O {[%clk 0:01:23.5]} 12. Rad1 {[%clk 0:02:47.3]}
12... Bb7 {[%clk 0:01:20.7]} 13. d4 {[%clk 0:02:46.9]} 13... cxd4 {[%clk
0:01:20.8]} 14. cxd4 {[%clk 0:02:47.8]} 14... Re8 {[%clk 0:01:14.9]} 15. d5
{[%clk 0:02:40.9]} 15... exd5 {[%clk 0:01:13.9]} 16. exd5 {[%clk 0:02:41.8]}
16... Nxd5 {[%clk 0:00:58.8]} 17. Bc4 {[%clk 0:02:40.1]} 17... Na5 {[%clk
0:00:58.9]} 18. Bb5 {[%clk 0:02:26.4]} 18... Qc8 {[%clk 0:00:45.3]} 19. Qa4
{[%clk 0:02:18]} 19... Rd8 {[%clk 0:00:44.9]} 20. Rc1 {[%clk 0:02:17.2]} 20...
Qb8 {[%clk 0:00:36.8]} 21. Qh4 {[%clk 0:02:14.1]} 21... Qf4 {[%clk 0:00:33.9]}
22. Qh3 {[%clk 0:02:12.4]} 22... Nc3 {[%clk 0:00:20]} 23. Rxc3 {[%clk
0:02:02.9]} 23... Bxc3 {[%clk 0:00:20.9]} 24. Be7 {[%clk 0:02:03.4]} 24... Bc8
{[%clk 0:00:17.8]} 25. Ne2 {[%clk 0:01:59.4]} 25... Bxh3 {[%clk 0:00:08.8]} 26.
Nxf4 {[%clk 0:01:59.3]} 26... Bf5 {[%clk 0:00:05.1]} 27. Bxd8 {[%clk 0:01:59.1]}
27... Rxd8 {[%clk 0:00:06]} 28. h3 {[%clk 0:01:58.9]} 28... Bf6 {[%clk
0:00:05.7]} 29. Re1 {[%clk 0:01:56.3]} 29... Nb7 {[%clk 0:00:05.1]} 30. g4
{[%clk 0:01:52.7]} 30... Bd7 {[%clk 0:00:02.9]} 31. Bc4 {[%clk 0:01:52.6]} 31...
Nd6 {[%clk 0:00:03.4]} 32. Bb3 {[%clk 0:01:52.5]} 32... Kg7 {[%clk 0:00:03.9]}
33. Nd5 {[%clk 0:01:50.9]} 33... Bc6 {[%clk 0:00:04.2]} 34. g5 {[%clk
0:01:45.3]} 34... Bb2 {[%clk 0:00:04.6]} 35. Re2 {[%clk 0:01:34]} 35... Ba3
{[%clk 0:00:03.5]} 36. Ne5 {[%clk 0:01:26.5]} 36... Bxd5 {[%clk 0:00:02.8]} 37.
Bxd5 {[%clk 0:01:27.4]} 37... Re8 {[%clk 0:00:02.7]} 38. f4 {[%clk 0:01:24.1]}
38... Bc5+ {[%clk 0:00:02.5]} 39. Kg2 {[%clk 0:01:23.3]} 39... Bd4 {[%clk
0:00:03]} 40. Kf3 {[%clk 0:01:21.5]} 40... Nf5 {[%clk 0:00:03.5]} 41. Kg4 {[%clk
0:01:11.4]} 41... Bxe5 {[%clk 0:00:03.1]} 42. fxe5 {[%clk 0:01:12.3]} 42... h5+
{[%clk 0:00:02.6]} 43. gxh6+ {[%clk 0:01:11.8]} 43... Nxh6+ {[%clk 0:00:03]} 44.
Kf4 {[%clk 0:01:12.4]} 44... f6 {[%clk 0:00:03.5]} 45. exf6+ {[%clk 0:01:12.1]}
45... Kf8 {[%clk 0:00:03]} 46. Rg2 {[%clk 0:01:10.8]} 46... Rd8 {[%clk
0:00:01.4]} 47. Bb3 {[%clk 0:01:08.6]} 47... Ng8 {[%clk 0:00:01.9]} 48. Rxg6
{[%clk 0:01:08]} 1-0

[Event "*** SCC Grand Prix: Titled Tuesday Blitz"]
[Site "Chess.com"]
[Date "2020.09.29"]
[Round "7"]
[White "maxip32"]
[Black "BanjoKazooieN64"]
[Result "0-1"]
[WhiteElo "2341"]
[BlackElo "2483"]
[TimeControl "180+1"]
[EndTime "11:15:35 PDT"]
[Termination "BanjoKazooieN64 won on time"]

1. e4 {[%clk 0:03:00.5]} 1... e5 {[%clk 0:03:00]} 2. Nf3 {[%clk 0:02:53.1]} 2...
Nc6 {[%clk 0:03:00.2]} 3. Bc4 {[%clk 0:02:51.8]} 3... Bc5 {[%clk 0:02:59.6]} 4.
O-O {[%clk 0:02:50.9]} 4... d6 {[%clk 0:02:59.1]} 5. d3 {[%clk 0:02:50.7]} 5...
Qf6 {[%clk 0:02:58.7]} 6. Be3 {[%clk 0:02:44.3]} 6... Nge7 {[%clk 0:02:57.7]} 7.
Bxc5 {[%clk 0:02:43.6]} 7... dxc5 {[%clk 0:02:58]} 8. Nbd2 {[%clk 0:02:43.1]}
8... O-O {[%clk 0:02:57.9]} 9. a4 {[%clk 0:02:42.3]} 9... a6 {[%clk 0:02:56.7]}
10. Qb1 {[%clk 0:02:15.3]} 10... Ng6 {[%clk 0:02:53.4]} 11. Re1 {[%clk
0:01:42.1]} 11... Nf4 {[%clk 0:02:48.4]} 12. g3 {[%clk 0:01:38.5]} 12... Nh3+
{[%clk 0:02:37]} 13. Kg2 {[%clk 0:01:38.3]} 13... Bg4 {[%clk 0:02:34.8]} 14. Rf1
{[%clk 0:01:15.9]} 14... Rad8 {[%clk 0:02:28.5]} 15. Bd5 {[%clk 0:00:58.2]}
15... Ng5 {[%clk 0:02:22.9]} 16. Nxg5 {[%clk 0:00:55]} 16... Qxg5 {[%clk
0:02:23.3]} 17. Bxc6 {[%clk 0:00:53.1]} 17... bxc6 {[%clk 0:02:20.8]} 18. Qe1
{[%clk 0:00:44]} 18... Qh5 {[%clk 0:02:15.2]} 19. h4 {[%clk 0:00:33.3]} 19...
Be6 {[%clk 0:02:02.5]} 20. f3 {[%clk 0:00:29.8]} 20... g5 {[%clk 0:01:46.2]} 21.
Rh1 {[%clk 0:00:19.4]} 21... Kh8 {[%clk 0:01:46.4]} 22. hxg5 {[%clk 0:00:18.6]}
22... Qxg5 {[%clk 0:01:46.7]} 23. Qf2 {[%clk 0:00:16.6]} 23... Rg8 {[%clk
0:01:46.6]} 24. Rag1 {[%clk 0:00:16.3]} 24... c4 {[%clk 0:01:41.8]} 25. Kf1
{[%clk 0:00:02.5]} 25... cxd3 {[%clk 0:01:40.8]} 26. c3 {[%clk 0:00:02.4]} 26...
Rb8 {[%clk 0:01:35.7]} 27. f4 {[%clk 0:00:02.7]} 27... Qg4 {[%clk 0:01:25.2]}
28. Nf3 {[%clk 0:00:02.9]} 28... exf4 {[%clk 0:01:20.7]} 29. Ne5 {[%clk
0:00:02.4]} 29... Qd1+ {[%clk 0:01:00.7]} 30. Kg2 {[%clk 0:00:02.7]} 30... Qc2
{[%clk 0:00:50.9]} 31. Qxc2 {[%clk 0:00:01.8]} 31... dxc2 {[%clk 0:00:44]} 32.
Kf3 {[%clk 0:00:02]} 32... Rxg3+ {[%clk 0:00:37.2]} 33. Rxg3 {[%clk 0:00:02.1]}
33... fxg3 {[%clk 0:00:37.4]} 34. Kxg3 {[%clk 0:00:02.7]} 34... Rxb2 {[%clk
0:00:36.5]} 35. Rc1 {[%clk 0:00:01.7]} 35... Bb3 {[%clk 0:00:31]} 0-1

[Event "*** SCC Grand Prix: Titled Tuesday Blitz"]
[Site "Chess.com"]
[Date "2020.09.29"]
[Round "7"]
[White "sergeikim"]
[Black "monalize"]
[Result "1-0"]
[WhiteElo "2413"]
[BlackElo "2287"]
[TimeControl "180+1"]
[EndTime "11:15:36 PDT"]
[Termination "sergeikim won by resignation"]

1. d4 {[%clk 0:03:00.9]} 1... d6 {[%clk 0:02:59]} 2. c4 {[%clk 0:03:00.9]} 2...
e5 {[%clk 0:02:58.4]} 3. Nf3 {[%clk 0:02:59.5]} 3... Nd7 {[%clk 0:02:57.4]} 4.
Nc3 {[%clk 0:02:58.6]} 4... Ngf6 {[%clk 0:02:57]} 5. e4 {[%clk 0:02:58.4]} 5...
Be7 {[%clk 0:02:56.1]} 6. g3 {[%clk 0:02:58]} 6... O-O {[%clk 0:02:55.9]} 7. Bg2
{[%clk 0:02:57.9]} 7... c6 {[%clk 0:02:56.1]} 8. O-O {[%clk 0:02:57.6]} 8... Re8
{[%clk 0:02:53.1]} 9. d5 {[%clk 0:02:57]} 9... c5 {[%clk 0:02:52.4]} 10. Ne1
{[%clk 0:02:55.2]} 10... Bf8 {[%clk 0:02:48.8]} 11. Nd3 {[%clk 0:02:54.9]} 11...
a6 {[%clk 0:02:48.2]} 12. a4 {[%clk 0:02:48.3]} 12... Rb8 {[%clk 0:02:47]} 13.
b4 {[%clk 0:02:44.3]} 13... cxb4 {[%clk 0:02:45.5]} 14. Nxb4 {[%clk 0:02:44.2]}
14... Nc5 {[%clk 0:02:44.5]} 15. h3 {[%clk 0:02:42]} 15... Qc7 {[%clk
0:02:31.4]} 16. Be3 {[%clk 0:02:37.3]} 16... Nfd7 {[%clk 0:02:24.3]} 17. Rb1
{[%clk 0:02:32.1]} 17... g6 {[%clk 0:02:16.9]} 18. Qd2 {[%clk 0:02:25.3]} 18...
Bg7 {[%clk 0:02:15.4]} 19. h4 {[%clk 0:02:14.4]} 19... Nb6 {[%clk 0:02:14]} 20.
Qa2 {[%clk 0:02:06.8]} 20... f5 {[%clk 0:02:08.3]} 21. a5 {[%clk 0:02:01.1]}
21... Nbd7 {[%clk 0:02:05]} 22. exf5 {[%clk 0:01:59.3]} 22... gxf5 {[%clk
0:02:04.6]} 23. Na4 {[%clk 0:01:56.5]} 23... Qxa5 {[%clk 0:01:50.1]} 24. Nxc5
{[%clk 0:01:51.8]} 24... Qxa2 {[%clk 0:01:48.8]} 25. Nxa2 {[%clk 0:01:52.7]}
25... Nxc5 {[%clk 0:01:47.8]} 26. Rb6 {[%clk 0:01:48.3]} 26... Bf8 {[%clk
0:01:43.7]} 27. Nb4 {[%clk 0:01:45.5]} 27... Ra8 {[%clk 0:01:41.7]} 28. Bxc5
{[%clk 0:01:35.1]} 28... dxc5 {[%clk 0:01:40.7]} 29. Nd3 {[%clk 0:01:35.4]}
29... e4 {[%clk 0:01:29.6]} 30. Nf4 {[%clk 0:01:33.6]} 30... a5 {[%clk
0:01:29.7]} 31. Ra1 {[%clk 0:01:31.6]} 31... a4 {[%clk 0:01:29.3]} 32. Bh3
{[%clk 0:01:26.7]} 32... Bg7 {[%clk 0:01:28.3]} 33. Ra2 {[%clk 0:01:25.6]} 33...
a3 {[%clk 0:01:27.8]} 34. Ne6 {[%clk 0:01:24.2]} 34... Bxe6 {[%clk 0:01:18.3]}
35. dxe6 {[%clk 0:01:23.7]} 35... Bb2 {[%clk 0:01:17.8]} 36. Bxf5 {[%clk
0:01:21.8]} 36... Rad8 {[%clk 0:01:17.1]} 37. Bxe4 {[%clk 0:01:18.1]} 37... Rd2
{[%clk 0:01:12.6]} 38. Bd5 {[%clk 0:01:14.5]} 38... Kg7 {[%clk 0:01:11.4]} 39.
Rxb7+ {[%clk 0:01:14.5]} 39... Kf6 {[%clk 0:01:10.6]} 40. Rf7+ {[%clk
0:01:12.3]} 40... Ke5 {[%clk 0:01:10.3]} 41. Kg2 {[%clk 0:01:09.2]} 41... Rxd5
{[%clk 0:00:58.9]} 42. cxd5 {[%clk 0:01:07.6]} 42... c4 {[%clk 0:00:57.5]} 43.
Rxh7 {[%clk 0:01:00.2]} 43... c3 {[%clk 0:00:57]} 44. Rc7 {[%clk 0:00:59.4]}
44... Kxd5 {[%clk 0:00:56.2]} 45. Rxa3 {[%clk 0:00:55.7]} 45... Bxa3 {[%clk
0:00:55.1]} 46. Rxc3 {[%clk 0:00:56.1]} 46... Rxe6 {[%clk 0:00:52.9]} 47. Rf3
{[%clk 0:00:55.2]} 47... Bd6 {[%clk 0:00:51]} 48. g4 {[%clk 0:00:52.4]} 48...
Re4 {[%clk 0:00:50.4]} 49. Kh3 {[%clk 0:00:51.1]} 49... Bf4 {[%clk 0:00:48.9]}
50. g5 {[%clk 0:00:49.4]} 50... Ke5 {[%clk 0:00:48.8]} 51. Kg4 {[%clk
0:00:49.1]} 51... Re1 {[%clk 0:00:41.3]} 52. Rxf4 {[%clk 0:00:43]} 52... Rg1+
{[%clk 0:00:38.3]} 53. Kf3 {[%clk 0:00:43]} 1-0

[Event "*** SCC Grand Prix: Titled Tuesday Blitz"]
[Site "Chess.com"]
[Date "2020.09.29"]
[Round "7"]
[White "Onischuk_V"]
[Black "WIDBIFS"]
[Result "1-0"]
[WhiteElo "2901"]
[BlackElo "2659"]
[TimeControl "180+1"]
[EndTime "11:15:40 PDT"]
[Termination "Onischuk_V won on time"]

1. e4 {[%clk 0:02:57.3]} 1... c6 {[%clk 0:02:57.7]} 2. d4 {[%clk 0:02:57]} 2...
d5 {[%clk 0:02:57.7]} 3. Nc3 {[%clk 0:02:57.5]} 3... dxe4 {[%clk 0:02:54.4]} 4.
Nxe4 {[%clk 0:02:57.7]} 4... Nf6 {[%clk 0:02:55.1]} 5. Nxf6+ {[%clk 0:02:57.5]}
5... exf6 {[%clk 0:02:56]} 6. c3 {[%clk 0:02:57.6]} 6... Bd6 {[%clk 0:02:55.1]}
7. Bd3 {[%clk 0:02:58.1]} 7... O-O {[%clk 0:02:54.9]} 8. Ne2 {[%clk 0:02:58.7]}
8... Qc7 {[%clk 0:02:54.3]} 9. h3 {[%clk 0:02:56.8]} 9... Re8 {[%clk 0:02:53.2]}
10. O-O {[%clk 0:02:56.4]} 10... Nd7 {[%clk 0:02:52.1]} 11. Ng3 {[%clk
0:02:34.4]} 11... g6 {[%clk 0:01:53.8]} 12. Qf3 {[%clk 0:02:29.7]} 12... f5
{[%clk 0:01:40.9]} 13. Bg5 {[%clk 0:02:29.5]} 13... Nf8 {[%clk 0:01:39.5]} 14.
Rfe1 {[%clk 0:02:28.8]} 14... Bd7 {[%clk 0:01:39.5]} 15. Bf6 {[%clk 0:02:21.1]}
15... Rxe1+ {[%clk 0:01:24.1]} 16. Rxe1 {[%clk 0:02:19.9]} 16... Re8 {[%clk
0:01:24.6]} 17. Rxe8 {[%clk 0:02:18.8]} 17... Bxe8 {[%clk 0:01:25.5]} 18. Qe3
{[%clk 0:01:57.6]} 18... Ne6 {[%clk 0:01:13.7]} 19. Bxf5 {[%clk 0:01:26.3]}
19... Bxg3 {[%clk 0:00:29]} 20. Bxe6 {[%clk 0:01:24.6]} 20... Bf4 {[%clk
0:00:24.9]} 21. Bxf7+ {[%clk 0:01:02.7]} 21... Qxf7 {[%clk 0:00:25]} 22. Qxf4
{[%clk 0:01:02.1]} 22... Qxa2 {[%clk 0:00:16.2]} 23. Qh6 {[%clk 0:00:57.5]}
23... Qf7 {[%clk 0:00:14.8]} 24. Be5 {[%clk 0:00:57.3]} 24... a5 {[%clk
0:00:12.8]} 25. Qg5 {[%clk 0:00:56.8]} 25... b5 {[%clk 0:00:12.1]} 26. Qd8
{[%clk 0:00:55.6]} 26... a4 {[%clk 0:00:12.7]} 27. f3 {[%clk 0:00:53.8]} 27...
h5 {[%clk 0:00:12.3]} 28. Kf2 {[%clk 0:00:52.9]} 28... Qe6 {[%clk 0:00:12.4]}
29. Qc7 {[%clk 0:00:51.4]} 29... Qf7 {[%clk 0:00:12.4]} 30. Qd6 {[%clk
0:00:50.6]} 30... Bd7 {[%clk 0:00:08.5]} 31. Qb8+ {[%clk 0:00:48.1]} 31... Be8
{[%clk 0:00:08.6]} 32. g4 {[%clk 0:00:47.4]} 32... hxg4 {[%clk 0:00:07.2]} 33.
hxg4 {[%clk 0:00:47.4]} 33... Qe6 {[%clk 0:00:06.9]} 34. Kg3 {[%clk 0:00:46.3]}
34... Qf7 {[%clk 0:00:05.3]} 35. f4 {[%clk 0:00:44.6]} 35... Qe6 {[%clk
0:00:04.1]} 36. Qd8 {[%clk 0:00:42.8]} 36... Qf7 {[%clk 0:00:01.2]} 37. f5
{[%clk 0:00:36.7]} 37... Kh7 {[%clk 0:00:02]} 38. Qh4+ {[%clk 0:00:35.8]} 1-0

[Event "*** SCC Grand Prix: Titled Tuesday Blitz"]
[Site "Chess.com"]
[Date "2020.09.29"]
[Round "7"]
[White "Violord"]
[Black "szachuspl"]
[Result "0-1"]
[WhiteElo "2681"]
[BlackElo "2545"]
[TimeControl "180+1"]
[EndTime "11:15:43 PDT"]
[Termination "szachuspl won by resignation"]

1. Nf3 {[%clk 0:03:00]} 1... Nf6 {[%clk 0:02:58]} 2. g3 {[%clk 0:02:59.8]} 2...
g6 {[%clk 0:02:58.2]} 3. Bg2 {[%clk 0:02:59]} 3... Bg7 {[%clk 0:02:58.8]} 4. O-O
{[%clk 0:02:59.1]} 4... O-O {[%clk 0:02:59.4]} 5. d4 {[%clk 0:02:59.3]} 5... d6
{[%clk 0:02:59.8]} 6. b3 {[%clk 0:02:58.9]} 6... a5 {[%clk 0:02:58.7]} 7. Bb2
{[%clk 0:02:52.1]} 7... a4 {[%clk 0:02:58.7]} 8. c4 {[%clk 0:02:51.6]} 8... Nc6
{[%clk 0:02:47.2]} 9. Nbd2 {[%clk 0:02:50.8]} 9... a3 {[%clk 0:02:46.6]} 10. Bc3
{[%clk 0:02:50.2]} 10... e5 {[%clk 0:02:43.4]} 11. dxe5 {[%clk 0:02:44.3]} 11...
Ng4 {[%clk 0:02:43]} 12. Qc1 {[%clk 0:02:42.3]} 12... Ngxe5 {[%clk 0:02:42.1]}
13. Nxe5 {[%clk 0:02:33.8]} 13... Bxe5 {[%clk 0:02:34.7]} 14. Bxc6 {[%clk
0:02:28.2]} 14... Bxc3 {[%clk 0:02:23.7]} 15. Qxc3 {[%clk 0:02:26.8]} 15... bxc6
{[%clk 0:02:23.8]} 16. Ne4 {[%clk 0:02:26.4]} 16... f5 {[%clk 0:02:17.5]} 17.
Nd2 {[%clk 0:02:20.9]} 17... c5 {[%clk 0:02:15.9]} 18. f3 {[%clk 0:02:11.5]}
18... Bb7 {[%clk 0:02:12.6]} 19. Rae1 {[%clk 0:02:11]} 19... Qg5 {[%clk
0:02:05.4]} 20. e4 {[%clk 0:02:09.4]} 20... f4 {[%clk 0:02:05.6]} 21. Kg2 {[%clk
0:02:02.6]} 21... h5 {[%clk 0:02:05.6]} 22. Qd3 {[%clk 0:01:53.8]} 22... Rae8
{[%clk 0:01:59.4]} 23. Rg1 {[%clk 0:01:51.6]} 23... fxg3 {[%clk 0:01:53.3]} 24.
hxg3 {[%clk 0:01:50.2]} 24... Rf6 {[%clk 0:01:40.2]} 25. Kf2 {[%clk 0:01:47.4]}
25... Ref8 {[%clk 0:01:35]} 26. Ke2 {[%clk 0:01:46.7]} 26... Qe5 {[%clk
0:01:34.6]} 27. Qe3 {[%clk 0:01:39.9]} 27... Kg7 {[%clk 0:01:30.3]} 28. g4
{[%clk 0:01:37.8]} 28... h4 {[%clk 0:01:15.9]} 29. g5 {[%clk 0:01:36.9]} 29...
Rf4 {[%clk 0:01:15.7]} 30. Ref1 {[%clk 0:01:24]} 30... Qb2 {[%clk 0:01:14.6]}
31. Rh1 {[%clk 0:01:17.4]} 31... Bc6 {[%clk 0:01:03.5]} 32. Rf2 {[%clk
0:01:16.5]} 32... Qxa2 {[%clk 0:01:00.8]} 33. Qc3+ {[%clk 0:01:15.4]} 33... Kg8
{[%clk 0:00:58]} 34. Rfh2 {[%clk 0:01:14.7]} 34... Rxf3 {[%clk 0:00:46.3]} 35.
Rxh4 {[%clk 0:00:34.3]} 35... Rxc3 {[%clk 0:00:37]} 36. Rh8+ {[%clk 0:00:33.4]}
36... Kf7 {[%clk 0:00:34.9]} 37. Rf1+ {[%clk 0:00:33.5]} 37... Ke7 {[%clk
0:00:34.6]} 38. Rhxf8 {[%clk 0:00:31]} 38... Be8 {[%clk 0:00:27.5]} 39. Rh8
{[%clk 0:00:25]} 39... Rc2 {[%clk 0:00:27]} 40. Rh7+ {[%clk 0:00:16.2]} 40...
Kd8 {[%clk 0:00:27.1]} 0-1

[Event "*** SCC Grand Prix: Titled Tuesday Blitz"]
[Site "Chess.com"]
[Date "2020.09.29"]
[Round "7"]
[White "OsorioFernando"]
[Black "vaishali2001"]
[Result "1-0"]
[WhiteElo "2318"]
[BlackElo "2465"]
[TimeControl "180+1"]
[EndTime "11:15:43 PDT"]
[Termination "OsorioFernando won by resignation"]

1. e4 {[%clk 0:03:00]} 1... c5 {[%clk 0:03:00]} 2. Nc3 {[%clk 0:02:59.6]} 2...
Nc6 {[%clk 0:02:59.2]} 3. g3 {[%clk 0:02:59.8]} 3... g6 {[%clk 0:02:59]} 4. Bg2
{[%clk 0:03:00.7]} 4... Bg7 {[%clk 0:02:59.8]} 5. d3 {[%clk 0:03:01]} 5... d6
{[%clk 0:03:00.4]} 6. Be3 {[%clk 0:03:01.2]} 6... Rb8 {[%clk 0:03:00.5]} 7. Qd2
{[%clk 0:03:01.3]} 7... b5 {[%clk 0:03:00.6]} 8. Nge2 {[%clk 0:02:51.1]} 8...
Nd4 {[%clk 0:03:00.6]} 9. O-O {[%clk 0:02:48.4]} 9... b4 {[%clk 0:02:56.2]} 10.
Nd1 {[%clk 0:02:47.5]} 10... Nxe2+ {[%clk 0:02:56.3]} 11. Qxe2 {[%clk
0:02:47.2]} 11... h5 {[%clk 0:02:44]} 12. h3 {[%clk 0:02:45.6]} 12... e5 {[%clk
0:02:00.6]} 13. a3 {[%clk 0:02:34.4]} 13... a5 {[%clk 0:01:58.7]} 14. axb4
{[%clk 0:02:31.3]} 14... axb4 {[%clk 0:01:59.6]} 15. Qd2 {[%clk 0:02:21.8]}
15... Ne7 {[%clk 0:01:32.1]} 16. f4 {[%clk 0:02:12.3]} 16... exf4 {[%clk
0:01:07.2]} 17. gxf4 {[%clk 0:02:02.9]} 17... Be6 {[%clk 0:00:55.3]} 18. Ra7
{[%clk 0:01:43.7]} 18... Qb6 {[%clk 0:00:52.3]} 19. Rxe7+ {[%clk 0:01:33.8]}
19... Kxe7 {[%clk 0:00:53.2]} 20. f5 {[%clk 0:01:33.6]} 20... gxf5 {[%clk
0:00:52.1]} 21. exf5 {[%clk 0:01:33]} 21... Bd7 {[%clk 0:00:49.4]} 22. f6+
{[%clk 0:01:28.3]} 22... Bxf6 {[%clk 0:00:48.4]} 23. Bg5 {[%clk 0:01:21.7]}
23... Bxg5 {[%clk 0:00:38.2]} 24. Qxg5+ {[%clk 0:01:20.6]} 24... Kf8 {[%clk
0:00:27.7]} 25. Bd5 {[%clk 0:01:08.6]} 25... Be8 {[%clk 0:00:23.9]} 26. Qf5
{[%clk 0:00:53.3]} 26... Rg8+ {[%clk 0:00:19.2]} 27. Kh1 {[%clk 0:00:50.8]}
27... Qc7 {[%clk 0:00:15.2]} 28. Ne3 {[%clk 0:00:45]} 28... Qe7 {[%clk
0:00:10.7]} 29. Nc4 {[%clk 0:00:35.1]} 29... Rd8 {[%clk 0:00:03.5]} 30. Qxh5
{[%clk 0:00:34.2]} 30... Rd7 {[%clk 0:00:03.1]} 31. Qh6+ {[%clk 0:00:28.5]}
31... Rg7 {[%clk 0:00:02.6]} 32. Rg1 {[%clk 0:00:26.6]} 32... f6 {[%clk
0:00:01.3]} 1-0

[Event "*** SCC Grand Prix: Titled Tuesday Blitz"]
[Site "Chess.com"]
[Date "2020.09.29"]
[Round "7"]
[White "PotapovaM"]
[Black "RobertoJBM"]
[Result "0-1"]
[WhiteElo "2563"]
[BlackElo "2724"]
[TimeControl "180+1"]
[EndTime "11:15:44 PDT"]
[Termination "RobertoJBM won on time"]

1. d4 {[%clk 0:03:00.9]} 1... d5 {[%clk 0:02:59.5]} 2. c4 {[%clk 0:03:01]} 2...
c6 {[%clk 0:02:59.2]} 3. cxd5 {[%clk 0:02:57.7]} 3... cxd5 {[%clk 0:02:59]} 4.
Nc3 {[%clk 0:02:58.6]} 4... Nf6 {[%clk 0:02:59]} 5. Bf4 {[%clk 0:02:59.2]} 5...
Qb6 {[%clk 0:02:58.5]} 6. e3 {[%clk 0:02:47.5]} 6... Qxb2 {[%clk 0:02:56.5]} 7.
Nge2 {[%clk 0:02:33.6]} 7... e6 {[%clk 0:02:53.6]} 8. Rb1 {[%clk 0:02:28.4]}
8... Qa3 {[%clk 0:02:52.8]} 9. Rb3 {[%clk 0:02:20.3]} 9... Qa5 {[%clk
0:02:51.2]} 10. Qd2 {[%clk 0:02:07.2]} 10... Nc6 {[%clk 0:02:42.7]} 11. Nb5
{[%clk 0:02:04.2]} 11... Bb4 {[%clk 0:02:22.8]} 12. Rxb4 {[%clk 0:01:51.5]}
12... Nxb4 {[%clk 0:02:23.7]} 13. Nec3 {[%clk 0:01:00.9]} 13... O-O {[%clk
0:02:12]} 14. Bd6 {[%clk 0:00:59.1]} 14... Bd7 {[%clk 0:02:08.7]} 15. a3 {[%clk
0:00:48.4]} 15... Nc6 {[%clk 0:02:01.2]} 16. Bxf8 {[%clk 0:00:32.6]} 16... Rxf8
{[%clk 0:02:02.1]} 17. Bd3 {[%clk 0:00:27.9]} 17... a6 {[%clk 0:01:59.6]} 18.
Nd6 {[%clk 0:00:24.9]} 18... b5 {[%clk 0:01:53.8]} 19. Nb7 {[%clk 0:00:19.8]}
19... Qxa3 {[%clk 0:01:52]} 20. O-O {[%clk 0:00:18.3]} 20... b4 {[%clk
0:01:39.2]} 21. Ne2 {[%clk 0:00:18]} 21... Rb8 {[%clk 0:01:37.9]} 22. Nc5 {[%clk
0:00:17.7]} 22... b3 {[%clk 0:01:27.9]} 23. Rb1 {[%clk 0:00:13]} 23... a5 {[%clk
0:01:21.7]} 24. Qc3 {[%clk 0:00:08.9]} 24... Be8 {[%clk 0:01:04.4]} 25. Rxb3
{[%clk 0:00:06.9]} 25... Rxb3 {[%clk 0:01:02.9]} 26. Qxb3 {[%clk 0:00:07.8]}
26... Qxb3 {[%clk 0:00:56.9]} 27. Nxb3 {[%clk 0:00:08.7]} 27... a4 {[%clk
0:00:55.8]} 28. Nc5 {[%clk 0:00:08.1]} 28... Nb4 {[%clk 0:00:55.9]} 29. Nc1
{[%clk 0:00:06.6]} 29... a3 {[%clk 0:00:50.6]} 30. Bb1 {[%clk 0:00:06.3]} 30...
Nd7 {[%clk 0:00:46.6]} 31. N5b3 {[%clk 0:00:05]} 31... Nb6 {[%clk 0:00:46.2]}
32. Na2 {[%clk 0:00:04.9]} 32... Nxa2 {[%clk 0:00:41.3]} 33. Bxa2 {[%clk
0:00:05.8]} 33... Bb5 {[%clk 0:00:41]} 34. Nc1 {[%clk 0:00:05.3]} 34... Bc4
{[%clk 0:00:40.1]} 35. f3 {[%clk 0:00:03.8]} 35... Na4 {[%clk 0:00:39.9]} 36.
Bb1 {[%clk 0:00:02]} 36... Nc3 {[%clk 0:00:39.2]} 37. Bc2 {[%clk 0:00:02.3]}
37... Ne2+ {[%clk 0:00:35.5]} 38. Nxe2 {[%clk 0:00:02]} 38... Bxe2 {[%clk
0:00:36.1]} 0-1